fUST/lending_fUST_20251017
["ID","MTS","AMOUNT","RATE_DAILY","PERIOD"]
[391600546,1760689617213,238.404668,0.00020187,2]
[391600547,1760689617403,238.404668,0.00026676,2]
[391600556,1760689672673,4759.56887082,0.00018,2]
[391600557,1760689672697,4876.498516,0.00018,2]
[391600558,1760689688276,3714.9441421,0.00026731,2]
[391600562,1760689712697,1408.5673419,0.00017,2]
[391600563,1760689712720,10000.01,0.00017,2]
[391600564,1760689712744,10000.01,0.00017,2]
[391600565,1760689712767,10000.01,0.00017,2]
[391600566,1760689712790,10000.01,0.00017,2]
[391600567,1760689712813,10000.01,0.00017,2]
[391600568,1760689712838,10000.01,0.00017,2]
[391600569,1760689712861,10000.01,0.00017,2]
[391600570,1760689712887,8493.37114923,0.00017,2]
[391600571,1760689713996,-217.5,0.00027005,2]
[391600572,1760689714019,-7247.93339481,0.000275,2]
[391600573,1760689714066,560.35392602,0.00018,5]
[391600574,1760689715728,631.15003522,0.00028,120]
[391600575,1760689717031,588.28712567,0.000149,2]
[391600576,1760689717077,357.99779908,0.0001,2]
[391600577,1760689717100,642.00220092,0.0001,2]
[391600578,1760689717796,613.9,0.00018,2]
[391600579,1760689717818,2417.9622187,0.00018,2]
[391600580,1760689721087,303.04582453,0.00021,2]
[391600584,1760689722497,409.822026,0.000269,20]
[391600589,1760689753177,-300.0,0.00027499,2]
[391600590,1760689753198,-14542.11756898,0.000275,2]
[391600591,1760689753219,-500.0,0.00027513,4]
[391600592,1760689753239,-500.0,0.00027513,4]
[391600593,1760689753260,-500.0,0.00027513,4]
[391600594,1760689753280,-500.0,0.00027513,4]
[391600595,1760689753300,-500.0,0.00027513,4]
[391600596,1760689753321,-500.0,0.00027513,4]
[391600597,1760689753341,-500.0,0.00027513,4]
[391600598,1760689753362,-500.0,0.00027513,4]
[391600599,1760689753382,-500.0,0.00027513,4]
[391600600,1760689753401,-500.0,0.00027513,4]
[391600601,1760689753424,-500.0,0.00027513,4]
[391600602,1760689753444,-500.0,0.00027513,4]
[391600603,1760689753464,-500.0,0.00027513,4]
[391600604,1760689753484,-223.23,0.00027513,4]
[391600605,1760689753504,-240.0,0.00027605,2]
[391600606,1760689753525,-409.822026,0.00027709,20]
[391600607,1760689753543,-501.27622305,0.00027731,7]
[391600608,1760689753563,-164.18850986,0.000279,2]
[391600609,1760689753582,-9000.0,0.00028,2]
[391600610,1760689753601,-24841.24989489,0.00028,3]
[391600611,1760689763170,-19084.53585149,0.00028,3]
[391600612,1760689763189,-218.96126238,0.00028,2]
[391600613,1760689763212,-300.0,0.00028049,30]
[391600614,1760689763234,-300.0,0.00028049,30]
[391600615,1760689763255,-300.0,0.00028049,30]
[391600616,1760689763284,-300.0,0.00028049,30]
[391600617,1760689763305,-300.0,0.00028049,30]
[391600618,1760689763327,-300.0,0.00028049,30]
[391600619,1760689763348,-300.0,0.00028049,30]
[391600620,1760689763370,-300.0,0.00028049,30]
[391600621,1760689763390,-300.0,0.00028049,30]
[391600622,1760689763411,-300.0,0.00028049,30]
[391600623,1760689763432,-300.0,0.00028049,30]
[391600624,1760689763452,-300.0,0.00028049,30]
[391600625,1760689763473,-300.0,0.00028049,30]
[391600626,1760689763494,-300.0,0.00028049,30]
[391600627,1760689763515,-300.0,0.00028049,30]
[391600628,1760689763535,-517.39,0.00028066,10]
[391600629,1760689763554,-300.0,0.00028075,2]
[391600630,1760689763572,-300.0,0.00028075,2]
[391600631,1760689763590,-300.0,0.00028075,2]
[391600632,1760689763609,-712.0,0.00028075,2]
[391600633,1760689763628,-300.0,0.00028075,2]
[391600634,1760689763647,-50000.0,0.00028075,2]
[391600635,1760689763669,-262.5,0.00028205,2]
[391600636,1760689763687,-13174.29610772,0.000285,7]
[391600637,1760689763707,-409.822026,0.00028517,20]
[391600638,1760689763728,-600.0,0.00028635,30]
[391600639,1760689763746,-166.66,0.00028788,7]
[391600640,1760689763765,-227.30249069,0.00028805,2]
[391600641,1760689763784,-350.36551748,0.00028896,22]
[391600642,1760689763805,-166.66,0.00029062,7]
[391600643,1760689763823,-169.754254,0.00029326,20]
[391600644,1760689763843,-409.822026,0.00029326,20]
[391600645,1760689763860,-166.68,0.00029336,7]
[391600646,1760689763879,-420.0,0.00029714,2]
[391600647,1760689763900,-431.15,0.0002999,10]
[391600648,1760689763925,-4643.34959804,0.0003,2]
[391600649,1760689771105,-158.1489,0.00028517,20]
[391600650,1760689771128,-158.1489,0.00029326,20]
[391600651,1760689771147,-15963.34684913,0.0003,2]
[391600652,1760689771169,-525.37951108,0.0003,2]
[391600653,1760689771190,-513.64565332,0.000301,5]
[391600654,1760689771216,-6556.1979486,0.000301,5]
[391600655,1760689771237,-164.87466837,0.00030102,10]
[391600656,1760689771258,-152.28617704,0.00030102,10]
[391600657,1760689771277,-340.38720997,0.0003012,7]
[391600658,1760689771296,-285.41324671,0.0003013,2]
[391600659,1760689771316,-169.754254,0.00030135,20]
[391600660,1760689771339,-409.822026,0.00030135,20]
[391600661,1760689771359,-158.1489,0.00030135,20]
[391600662,1760689771379,-269.97571965,0.0003015,120]
[391600663,1760689771409,158.1489,0.00027709,20]
[391600664,1760689771501,158.1489,0.000269,20]
[391600665,1760689777595,1201.3,0.000301,2]
[391600666,1760689780685,152.543684,0.00030135,20]
[391600667,1760689780981,152.543684,0.00029326,20]
[391600668,1760689781417,152.543684,0.00028517,20]
[391600669,1760689781780,152.543684,0.00027709,20]
[391600670,1760689782084,152.543684,0.000269,20]
[391600671,1760689803340,164.87466837,0.00030102,10]
[391600672,1760689806650,152.28617704,0.00030102,10]
[391600673,1760689812479,150.0,0.00025205,2]
[391600674,1760689812890,172.5,0.00025805,2]
[391600675,1760689813269,195.0,0.00026405,2]
[391600676,1760689813807,217.5,0.00027005,2]
[391600677,1760689814425,240.0,0.00027605,2]
[391600678,1760689814920,262.5,0.00028205,2]
[391600679,1760689815548,285.0,0.00028805,2]
[391600680,1760689815953,307.5,0.00029405,2]
[391600681,1760689817299,330.0,0.00030005,2]
[391600682,1760689827174,6071.4800424,0.00028731,2]
[391600722,1760689832069,-352.5,0.00030605,2]
[391600724,1760689832080,-11.78291897,0.00030605,2]
[391600730,1760689832127,-188.21708103,0.00030605,2]
[391600732,1760689832137,-1980.5791026,0.00030674,2]
[391600734,1760689832148,-164.87466836,0.00031033,10]
[391600736,1760689832158,-152.28617704,0.00031033,10]
[391600738,1760689832168,-375.0,0.00031205,2]
[391600739,1760689832178,-161.71,0.00031262,15]
[391600742,1760689832188,-161.71,0.00031362,15]
[391600745,1760689832198,-161.71,0.00031462,15]
[391600748,1760689832215,-1600.0,0.00031765,3]
[391600751,1760689832226,-400.0,0.00031766,3]
[391600754,1760689832236,-200.0,0.00031766,3]
[391600757,1760689832246,-400.0,0.00031766,2]
[391600760,1760689832257,-400.0,0.00031766,3]
[391600762,1760689832269,-400.0,0.00031766,3]
[391600765,1760689832279,-501.29636073,0.00031767,5]
[391600768,1760689832290,-506.1536803,0.00031767,5]
[391600771,1760689832300,-500.0,0.00031767,5]
[391600773,1760689832310,-502.61911666,0.00031767,5]
[391600775,1760689832320,-500.0,0.00031767,5]
[391600777,1760689832329,-500.0,0.00031767,5]
[391600779,1760689832340,-397.5,0.00031805,2]
[391600780,1760689832350,-506.14576343,0.00031882,5]
[391600781,1760689832361,-500.0,0.00031882,2]
[391600782,1760689832371,-500.0,0.00031882,5]
[391600783,1760689832381,-500.65111537,0.00031882,5]
[391600784,1760689832392,-2954.39,0.0003198,3]
[391600785,1760689832402,-1477.19,0.0003198,3]
[391600786,1760689832411,-738.6,0.0003198,3]
[391600787,1760689832422,-1000.0,0.00031987,30]
[391600788,1760689832432,-151.0,0.00032,11]
[391600789,1760689832442,-151.0,0.000322,20]
[391600790,1760689832451,-1000.0,0.00032315,5]
[391600791,1760689832465,-1001.93327532,0.00032315,5]
[391600792,1760689832475,-1431.65,0.00032356,2]
[391600793,1760689832486,-553.97,0.00032383,3]
[391600794,1760689832496,-27574.24284892,0.00032393,8]
[391600795,1760689832506,-300.0,0.00032399,30]
[391600796,1760689832516,-300.0,0.00032399,30]
[391600797,1760689832531,-300.0,0.00032399,30]
[391600798,1760689832541,-300.0,0.00032399,30]
[391600799,1760689832552,-300.0,0.00032399,30]
[391600800,1760689832563,-300.0,0.00032399,30]
[391600801,1760689832573,-300.0,0.00032399,30]
[391600802,1760689832583,-300.0,0.00032399,30]
[391600803,1760689832593,-300.0,0.00032399,30]
[391600804,1760689832603,-300.0,0.00032399,30]
[391600805,1760689832614,-300.0,0.00032399,30]
[391600806,1760689832623,-300.0,0.00032399,30]
[391600807,1760689832633,-300.0,0.00032399,30]
[391600808,1760689832643,-300.0,0.00032399,30]
[391600809,1760689832652,-151.0,0.000324,19]
[391600810,1760689832662,-420.0,0.00032405,2]
[391600811,1760689832671,-500.0,0.0003243,5]
[391600812,1760689832681,-21113.43167397,0.00032583,2]
[391600813,1760689832691,-291.30986788,0.000326,2]
[391600814,1760689832701,-151.0,0.000326,16]
[391600815,1760689832714,-369.3,0.00032662,3]
[391600816,1760689832724,-184.65,0.00032662,3]
[391600817,1760689832734,-359.3,0.00032662,10]
[391600818,1760689832745,-500.0,0.00032673,5]
[391600819,1760689832754,-500.0,0.00032673,5]
[391600820,1760689832764,-500.0,0.00032673,5]
[391600821,1760689832774,-500.0,0.00032673,5]
[391600822,1760689832784,-500.0,0.00032673,5]
[391600823,1760689832794,-500.0,0.00032673,5]
[391600824,1760689832803,-500.0,0.00032673,3]
[391600825,1760689832814,-500.0,0.00032673,5]
[391600826,1760689832823,-500.0,0.00032673,5]
[391600827,1760689832832,-61993.8634493,0.00032673,2]
[391600828,1760689832842,-1832.51420352,0.00032673,2]
[391600829,1760689832851,-349.24,0.00032673,3]
[391600830,1760689832861,-622.0,0.00032673,3]
[391600831,1760689832871,-151.0,0.00032673,2]
[391600832,1760689832882,-151.0,0.00032673,2]
[391600833,1760689832892,-151.0,0.00032673,2]
[391600834,1760689832905,-151.0,0.00032673,2]
[391600835,1760689832915,-151.0,0.00032673,2]
[391600836,1760689832925,-151.0,0.00032673,2]
[391600837,1760689832936,-158.46588529,0.00032673,2]
[391600838,1760689832946,-521.52824347,0.00032682,2]
[391600839,1760689832961,-261.0214992,0.00032682,2]
[391600840,1760689832971,-216978.522072,0.00032683,2]
[391600841,1760689832981,-7330.05681408,0.00032683,2]
[391600842,1760689832991,-370000.0,0.00032693,2]
[391600843,1760689833001,-578.41,0.000327,7]
[391600844,1760689833011,-409.822026,0.000327,2]
[391600845,1760689833021,-2409.32,0.000327,2]
[391600846,1760689833031,-158.1489,0.000327,2]
[391600847,1760689833042,-152.543684,0.000327,2]
[391600848,1760689833055,-160.0,0.00032735,2]
[391600849,1760689833067,-151.0,0.000328,14]
[391600850,1760689833078,-500.0,0.00032863,5]
[391600851,1760689833089,-1999.0,0.00032876,120]
[391600852,1760689833099,-100000.0,0.0003299,2]
[391600853,1760689833110,-291.30986784,0.00033,2]
[391600854,1760689833120,-151.0,0.00033,13]
[391600855,1760689833137,-442.5,0.00033005,2]
[391600856,1760689833147,-238.404668,0.00033165,2]
[391600857,1760689833157,-165.31735828,0.000332,117]
[391600858,1760689833167,-151.0,0.000332,15]
[391600859,1760689833176,-1000.91451526,0.00033221,5]
[391600860,1760689833186,-504.23378731,0.00033221,5]
[391600861,1760689833196,-1000.0,0.00033221,5]
[391600862,1760689833206,-1000.0,0.00033221,5]
[391600863,1760689833221,-1000.0,0.00033221,5]
[391600864,1760689833231,-1000.0,0.00033221,3]
[391600865,1760689833241,-1000.0,0.00033221,5]
[391600866,1760689833251,-1000.0,0.00033221,5]
[391600867,1760689833261,-21113.43167396,0.00033243,2]
[391600868,1760689833272,-260.0,0.00033283,2]
[391600869,1760689833281,-5908.78,0.0003335,3]
[391600870,1760689833291,-2954.38,0.0003335,3]
[391600871,1760689833301,-1477.2,0.0003335,3]
[391600872,1760689833311,-2633.0,0.00033352,2]
[391600873,1760689833321,-291.30986784,0.000334,2]
[391600874,1760689833331,-151.0,0.000334,19]
[391600875,1760689833341,-150.0,0.00033564,2]
[391600876,1760689833351,-151.0,0.000336,13]
[391600877,1760689833361,-1201.3,0.000336,2]
[391600878,1760689833371,-177.78139024,0.00033604,2]
[391600879,1760689833381,-380.13162983,0.00033605,2]
[391600880,1760689833391,-153770.36333407,0.00033702,10]
[391600902,1760689837891,-300.0,0.00032399,30]
[391600904,1760689837900,-500.0,0.0003243,5]
[391600905,1760689837909,-600.0,0.00032619,30]
[391600906,1760689837918,-500.0,0.00032671,2]
[391600907,1760689837927,-500.0,0.00032671,2]
[391600908,1760689837938,-500.0,0.00032671,2]
[391600909,1760689837947,-500.0,0.00032671,2]
[391600910,1760689837956,-500.0,0.00032671,2]
[391600911,1760689837969,-500.0,0.00032671,2]
[391600912,1760689837977,-157.9769814,0.00032671,2]
[391600913,1760689837987,-500.0,0.00032671,2]
[391600914,1760689837996,-500.0,0.00032671,2]
[391600916,1760689838007,-500.0,0.00032671,2]
[391600917,1760689838017,-600.07483757,0.00032671,2]
[391600920,1760689838027,-500.0,0.00032671,2]
[391600922,1760689838037,-500.0,0.00032671,2]
[391600926,1760689838048,-500.0,0.00032671,2]
[391600929,1760689838060,-500.0,0.00032671,2]
[391600932,1760689838072,-500.0,0.00032671,2]
[391600935,1760689838083,-500.0,0.00032671,2]
[391600937,1760689838094,-500.0,0.00032671,2]
[391600939,1760689838106,-500.0,0.00032671,2]
[391600941,1760689838115,-500.0,0.00032671,2]
[391600943,1760689838125,-500.0,0.00032671,2]
[391600945,1760689838136,-500.0,0.00032671,2]
[391600947,1760689838146,-500.0,0.00032671,2]
[391600949,1760689838155,-500.0,0.00032671,2]
[391600951,1760689838166,-500.0,0.00032671,2]
[391600953,1760689838176,-383.06460773,0.00032671,2]
[391600954,1760689838186,-187.0,0.00032671,2]
[391600955,1760689838196,-500.0,0.00032671,2]
[391600956,1760689838206,-500.0,0.00032671,2]
[391600957,1760689838222,-500.0,0.00032671,2]
[391600958,1760689838233,-615.72794803,0.00032671,2]
[391600959,1760689838243,-500.0,0.00032671,2]
[391600960,1760689838254,-500.0,0.00032671,2]
[391600961,1760689838265,-500.0,0.00032671,2]
[391600962,1760689838275,-500.0,0.00032671,2]
[391600963,1760689838286,-602.07460292,0.00032671,2]
[391600964,1760689838297,-500.0,0.00032671,2]
[391600965,1760689838308,-500.0,0.00032671,2]
[391600966,1760689838319,-500.0,0.00032671,2]
[391600967,1760689838330,-187.0,0.00032671,2]
[391600968,1760689838340,-500.0,0.00032671,2]
[391600969,1760689838350,-500.0,0.00032671,2]
[391600970,1760689838359,-500.0,0.00032671,2]
[391600971,1760689838369,-500.0,0.00032671,2]
[391600972,1760689838380,-500.0,0.00032671,2]
[391600973,1760689838390,-500.0,0.00032671,2]
[391600974,1760689838400,-500.0,0.00032671,2]
[391600975,1760689838410,-500.0,0.00032671,2]
[391600976,1760689838420,-500.0,0.00032671,2]
[391600977,1760689838430,-500.0,0.00032671,2]
[391600978,1760689838441,-500.0,0.00032671,2]
[391600979,1760689838450,-500.0,0.00032671,2]
[391600980,1760689838464,-500.0,0.00032671,2]
[391600981,1760689838473,-500.0,0.00032671,2]
[391600982,1760689838483,-500.0,0.00032671,2]
[391600983,1760689838493,-500.0,0.00032671,2]
[391600984,1760689838502,-500.0,0.00032671,2]
[391600985,1760689838511,-500.0,0.00032671,2]
[391600986,1760689838521,-500.0,0.00032671,2]
[391600987,1760689838531,-500.0,0.00032671,2]
[391600988,1760689838541,-500.0,0.00032671,2]
[391600989,1760689838550,-500.0,0.00032671,2]
[391600990,1760689838560,-500.0,0.00032671,2]
[391600991,1760689838570,-500.0,0.00032671,2]
[391600992,1760689838579,-500.0,0.00032671,2]
[391600993,1760689838589,-500.0,0.00032671,2]
[391600994,1760689838598,-500.0,0.00032671,2]
[391600995,1760689838608,-406.89659107,0.00032671,2]
[391600996,1760689838620,-93.10340893,0.00032671,2]
[391600997,1760689838630,-500.0,0.00032671,2]
[391600998,1760689838639,-500.0,0.00032671,2]
[391600999,1760689838649,-500.0,0.00032671,2]
[391601000,1760689838659,-500.0,0.00032671,2]
[391601001,1760689838669,-500.0,0.00032671,2]
[391601002,1760689838679,-633.98846942,0.00032671,2]
[391601003,1760689838689,-500.0,0.00032671,2]
[391601004,1760689838699,-466.6651265,0.00032704,5]
[391601005,1760689838709,-11674.77666593,0.00033702,10]
[391601006,1760689838722,-409.822026,0.00033704,2]
[391601007,1760689838732,-158.1489,0.00033704,2]
[391601008,1760689838742,-152.543684,0.00033704,2]
[391601009,1760689838751,-1500.0,0.00033768,5]
[391601010,1760689838761,-1500.0,0.00033768,5]
[391601011,1760689838771,-1500.0,0.00033768,5]
[391601012,1760689838781,-1500.0,0.00033768,5]
[391601013,1760689838790,-1500.0,0.00033768,5]
[391601014,1760689838800,-500.0,0.00033773,5]
[391601015,1760689838811,-500.0,0.00033773,5]
[391601016,1760689838821,-500.0,0.00033773,5]
[391601017,1760689838830,-500.0,0.00033773,5]
[391601018,1760689838840,-500.0,0.00033773,5]
[391601019,1760689838849,-10000.0,0.00033795,2]
[391601020,1760689838858,-291.30986784,0.000338,2]
[391601021,1760689838867,-151.0,0.000338,20]
[391601022,1760689838877,-360.0,0.00033831,2]
[391601023,1760689838887,-1354.7303142,0.00033857,2]
[391601024,1760689838896,-21113.43167396,0.00033902,2]
[391601025,1760689838906,-397.92116244,0.00034001,7]
[391601026,1760689838916,-500.0,0.00034001,7]
[391601027,1760689838926,-609.05016479,0.00034001,7]
[391601028,1760689838936,-500.0,0.00034001,7]
[391601029,1760689838946,-216.89923475,0.00034001,7]
[391601030,1760689838956,-243.0,0.00034001,7]
[391601031,1760689838969,-400.00831529,0.00034001,7]
[391601032,1760689838979,-500.0,0.00034001,2]
[391601033,1760689838989,-289.11940033,0.00034001,7]
[391601034,1760689838998,-243.0,0.00034001,7]
[391601035,1760689839007,-500.0,0.00034001,2]
[391601036,1760689839018,-500.0,0.00034001,7]
[391601037,1760689839027,-500.0,0.00034001,7]
[391601038,1760689839037,-290.63643867,0.00034001,2]
[391601039,1760689839049,-403.7764966,0.00034001,7]
[391601040,1760689839062,-151.0,0.00034002,30]
[391601041,1760689839073,-151.0,0.00034002,30]
[391601042,1760689839083,-151.0,0.00034002,30]
[391601043,1760689839095,-457844.06865035,0.00034002,20]
[391601044,1760689839107,-10042.11837798,0.00034002,20]
[391601045,1760689839119,-11151.22893356,0.00034002,20]
[391601046,1760689839132,-2078.76128573,0.00034002,20]
[391601047,1760689839145,-6025006.14221693,0.00034002,20]
[391601048,1760689839155,-19639.36827573,0.00034002,30]
[391601049,1760689839165,-738.6,0.00034032,3]
[391601050,1760689839176,-369.3,0.00034032,3]
[391601051,1760689839186,-531.13383981,0.00034073,5]
[391601052,1760689839197,-560.0,0.00034174,3]
[391601053,1760689839207,-560.0,0.00034174,3]
[391601054,1760689839222,-560.0,0.00034174,2]
[391601055,1760689839232,-160.0,0.00034174,3]
[391601056,1760689839242,-291.30986784,0.000342,2]
[391601057,1760689839252,-916.25710176,0.0003429,2]
[391601058,1760689839261,-2240.0,0.00034315,3]
[391601059,1760689839271,-1469.57264571,0.00034316,5]
[391601060,1760689839281,-2000.0,0.00034316,5]
[391601061,1760689839290,-2000.0,0.00034316,5]
[391601062,1760689839300,-2000.0,0.00034316,5]
[391601063,1760689839309,-1000.0,0.00034321,5]
[391601064,1760689839319,-627.84246924,0.00034321,5]
[391601065,1760689839329,-1000.0,0.00034321,5]
[391601066,1760689839338,-1000.0,0.00034321,5]
[391601067,1760689839347,-1000.0,0.00034321,5]
[391601068,1760689839357,-460.0,0.00034379,2]
[391601069,1760689839367,-869.0,0.00034442,2]
[391601070,1760689839376,-167.62569736,0.000345,2]
[391601071,1760689839386,-194.95454805,0.000345,2]
[391601072,1760689839395,-1916.43443586,0.000345,2]
[391601073,1760689839405,-502.76384969,0.00034708,7]
[391601074,1760689839415,-409.822026,0.00034708,2]
[391601075,1760689839424,-158.1489,0.00034708,2]
[391601076,1760689839434,-152.543684,0.00034708,2]
[391601077,1760689839444,-167.62569736,0.000348,2]
[391601078,1760689839453,-194.95454805,0.000348,2]
[391601079,1760689839466,-1916.43443586,0.000348,2]
[391601080,1760689839476,-1315.95923357,0.00034864,5]
[391601082,1760689839486,-2500.0,0.00034864,5]
[391601084,1760689839496,-2500.0,0.00034864,5]
[391601086,1760689839507,-1500.0,0.00034868,5]
[391601088,1760689839517,-1004.22237887,0.00034868,5]
[391601090,1760689839526,-1500.0,0.00034868,5]
[391601091,1760689839536,-1500.0,0.00034868,5]
[391601092,1760689839546,-560.0,0.00034927,2]
[391601093,1760689839555,-1000.0,0.00035,120]
[391601094,1760689839564,-302.2811919,0.00035001,2]
[391601095,1760689839574,-869.0,0.00035036,2]
[391601096,1760689839583,-869.0,0.00035056,2]
[391601097,1760689839593,-194.95454805,0.000352,2]
[391601099,1760689839603,-167.62569736,0.000352,2]
[391601100,1760689839612,-1916.43443586,0.000352,2]
[391601101,1760689839621,-250.0,0.00035287,2]
[391601103,1760689839630,-2863.3,0.00035298,2]
[391601104,1760689839640,-3000.0,0.00035412,5]
[391601105,1760689839650,-3000.0,0.00035412,5]
[391601107,1760689839659,-511.33957118,0.00035416,5]
[391601108,1760689839668,-2000.0,0.00035416,5]
[391601109,1760689839678,-2000.0,0.00035416,5]
[391601110,1760689839687,-660.0,0.00035475,2]
[391601111,1760689839697,-167.62569736,0.000355,2]
[391601112,1760689839707,-194.95454805,0.000355,2]
[391601114,1760689839720,-1916.43443586,0.000355,2]
[391601115,1760689839729,-869.0,0.0003556,2]
[391601116,1760689839738,-869.0,0.00035601,2]
[391601117,1760689839747,-869.0,0.00035709,2]
[391601118,1760689839756,-169.754254,0.00035713,2]
[391601119,1760689839765,-409.822026,0.00035713,2]
[391601120,1760689839774,-158.1489,0.00035713,2]
[391601121,1760689839783,-152.543684,0.00035713,2]
[391601122,1760689839792,-869.0,0.00035781,2]
[391601123,1760689839802,-720.0,0.0003588,30]
[391601124,1760689839811,-167.62569736,0.000359,2]
[391601125,1760689839821,-1916.43443586,0.000359,2]
[391601126,1760689839830,-1500.0,0.0003596,5]
[391601127,1760689839839,-1000.0,0.0003596,5]
[391601128,1760689839849,-2500.0,0.00035964,5]
[391601129,1760689839858,-2500.0,0.00035964,5]
[391601130,1760689839869,-760.0,0.00036023,2]
[391601131,1760689839878,-869.0,0.00036176,2]
[391601132,1760689839887,-3000.0,0.00036512,5]
[391601133,1760689839897,-860.0,0.00036571,2]
[391601134,1760689839907,-153.0,0.0003665,30]
[391601135,1760689839917,-192.805137,0.00036717,2]
[391601136,1760689839926,-169.754254,0.00036717,2]
[391601137,1760689839936,-409.822026,0.00036717,2]
[391601138,1760689839945,-158.1489,0.00036717,2]
[391601139,1760689839954,-152.543684,0.00036717,2]
[391601140,1760689839965,-360.0,0.00036765,3]
[391601141,1760689839975,-783.0,0.00036765,2]
[391601142,1760689839985,-2409.32,0.000368,14]
[391601143,1760689839994,-869.0,0.00036845,2]
[391601144,1760689840003,-3500.0,0.0003706,5]
[391601145,1760689840014,-3135.0,0.0003707,3]
[391601146,1760689840024,-960.0,0.00037119,2]
[391601147,1760689840034,-3039.10756488,0.00037608,5]
[391601148,1760689840044,-1060.0,0.00037667,2]
[391601149,1760689840055,-1201.3,0.000378,2]
[391601150,1760689840069,-1308.44403914,0.00038,30]
[391601151,1760689840080,-500.0,0.00038125,30]
[391601152,1760689840090,-151.0,0.00038125,30]
[391601153,1760689840100,-151.0,0.00038125,30]
[391601154,1760689840110,-500.0,0.00038125,30]
[391601155,1760689840119,-151.0,0.00038125,30]
[391601156,1760689840129,-151.0,0.00038125,30]
[391601157,1760689840141,-151.9727561,0.00038125,30]
[391601158,1760689840150,-151.0,0.00038125,30]
[391601159,1760689840159,-151.63128741,0.00038125,30]
[391601160,1760689840169,-153.36400569,0.00038125,30]
[391601161,1760689840262,-175.57269617,0.00038125,30]
[391601162,1760689840272,-500.0,0.00038125,30]
[391601163,1760689840283,-152.15258847,0.00038125,30]
[391601164,1760689840293,-151.9182964,0.00038125,2]
[391601165,1760689840302,-151.0,0.00038125,30]
[391601166,1760689840311,-500.0,0.0003818,30]
[391601167,1760689840320,-500.0,0.0003818,30]
[391601168,1760689840331,-151.0,0.0003818,30]
[391601169,1760689840341,-500.0,0.0003818,30]
[391601170,1760689840351,-1160.0,0.00038215,2]
[391601172,1760689840360,-500.0,0.00038235,30]
[391601173,1760689840369,-500.0,0.00038235,30]
[391601174,1760689840380,-500.0,0.00038235,30]
[391601175,1760689840389,-4294.95,0.00038239,2]
[391601176,1760689840399,-179.65864857,0.00038259,19]
[391601177,1760689840408,-500.0,0.00038289,30]
[391601178,1760689840418,-500.0,0.00038289,30]
[391601179,1760689840428,-500.0,0.00038344,30]
[391601180,1760689840437,-500.0,0.00038344,30]
[391601181,1760689840447,-500.0,0.00038399,30]
[391601182,1760689840456,-500.0,0.00038399,30]
[391601184,1760689840471,-180.0,0.00038454,30]
[391601185,1760689840480,-500.0,0.00038454,30]
[391601187,1760689840490,-500.0,0.00038509,30]
[391601189,1760689840499,-500.0,0.00038563,30]
[391601191,1760689840508,-500.0,0.00038618,30]
[391601192,1760689840518,-600.0,0.00038673,30]
[391601194,1760689840528,-1260.0,0.00038763,2]
[391601195,1760689840537,-9846.29734895,0.0003888,30]
[391601196,1760689840546,-57203.71252729,0.00039,60]